Workbook

Sheet עצות
A1: עצות עבור התבנית
A2: האם יש דרך קלה לעבור בין גליון הסיכום של מגמות ההוצאות לבין פרטי ההוצאות החודשיות?
A3: כדי לנווט במהירות אל ההוצאות של חודש מסוים, לחץ על קישור הניווט המשויך שנמצא מעל התרשים, כגון קישור הניווט ינו בתא B2. לאחר מכן, כדי לחזור אל גליון העבודה של מגמות ההוצאות, לחץ על קישור הניווט סיכום בתא D1.
A4: כדי לחזור אל גליון עבודה זה של עצות, בגליון העבודה 'סיכום', בחר את תא N2. מכל גליונות העבודה של החודשים, בחר את תא E1.
A5: כיצד ניתן להוסיף סוג הוצאה חדש לסיכום ההוצאות או הוצאות חודשיות חדשות?
A6: סיכום ההוצאות מתחת לתרשים ופרטי ההוצאות עבור כל חודש מהווים טבלאות Excel. כדי להוסיף שורות חדשות לטבלת Excel, בצע אחת מהפעולות הבאות:
A7: =ROW(A1)&". אם לטבלה אין שורת סכום, התחל להקליד מתחת לטבלה והיא תתרחב באופן אוטומטי בעת ההקשה על מקש Enter או Tab." -> 1. אם לטבלה אין שורת סכום, התחל להקליד מתחת לטבלה והיא תתרחב באופן אוטומטי בעת ההקשה על מקש Enter או Tab.
A8: =ROW(A2)&". מקם את מצביע התא בתא האחרון מעל שורת הסכום, כגון הסכום הכולל של ההוצאה האחרונה, ולאחר מכן הקש על מקש Tab." -> 2. מקם את מצביע התא בתא האחרון מעל שורת הסכום, כגון הסכום הכולל של ההוצאה האחרונה, ולאחר מכן הקש על מקש Tab.
A9: =ROW(A3)&". לחץ באמצעות לחצן העכבר הימני בטבלה ובתפריט המוקפץ, הצבע על 'הוספה' ולאחר מכן לחץ על 'שורות טבלה מעל' או 'שורות טבלה מתחת'." -> 3. לחץ באמצעות לחצן העכבר הימני בטבלה ובתפריט המוקפץ, הצבע על 'הוספה' ולאחר מכן לחץ על 'שורות טבלה מעל' או 'שורות טבלה מתחת'.
A10: =ROW(A4)&". בפינה השמאלית התחתונה של הטבלה, מקם את העכבר על נקודת האחיזה לשינוי גודל של הטבלה וגרור כדי להגדיל את מספר שורות הטבלה הזמינות." -> 4. בפינה השמאלית התחתונה של הטבלה, מקם את העכבר על נקודת האחיזה לשינוי גודל של הטבלה וגרור כדי להגדיל את מספר שורות הטבלה הזמינות.
A11: הזן הוצאה בגליון העבודה סיכום, בטבלה סיכום ההוצאות, בעמודה הוצאות.
A12: הוסף את סכום ההוצאה עבור כל סוג הוצאה בגליון העבודה של החודש שבו התרחשה ההוצאה.
A13: לדוגמה: "הוצאה 1" מתרחשת בחודשים ינואר עד יוני ובדצמבר.
A14: =ROW(A1)&". הוצאה 1 מוזנת בגליון העבודה לסיכום תחת 'הוצאה' בטבלה ExpenseSummary (ככותרת עבור סוג ההוצאה)" -> 1. הוצאה 1 מוזנת בגליון העבודה לסיכום תחת 'הוצאה' בטבלה ExpenseSummary (ככותרת עבור סוג ההוצאה)
A15: =ROW(A2)&". עבור כל חודש שבו מתרחשת ההוצאה, הזן את סכום ההוצאה בגליון העבודה של החודש התואם." -> 2. עבור כל חודש שבו מתרחשת ההוצאה, הזן את סכום ההוצאה בגליון העבודה של החודש התואם.
A16: =ROW(A3)&". סוג ההוצאה מגליון העבודה ExpenseSummary יוצר רשימת קטגוריות עבור העמודה 'קטגוריה' בגליון העבודה של כל חודש." -> 3. סוג ההוצאה מגליון העבודה ExpenseSummary יוצר רשימת קטגוריות עבור העמודה 'קטגוריה' בגליון העבודה של כל חודש.
A17: =ROW(A4)&". השתמש ברשימת הקטגוריות בעמודה 'קטגוריה' כדי לבחור את סוג ההוצאה התואם עבור סכום ההוצאה שהוזן" -> 4. השתמש ברשימת הקטגוריות בעמודה 'קטגוריה' כדי לבחור את סוג ההוצאה התואם עבור סכום ההוצאה שהוזן
A18: =ROW(A5)&". כדי להוסיף הוצאות חדשות עבור חודש כלשהו, הוסף שורה חדשה בטבלה ExpenseSummary בגליון העבודה של הסיכום, ולאחר מכן הזן את פרטי ההוצאה התואמת בגליון העבודה של החודש שבו חלה ההוצאה." -> 5. כדי להוסיף הוצאות חדשות עבור חודש כלשהו, הוסף שורה חדשה בטבלה ExpenseSummary בגליון העבודה של הסיכום, ולאחר מכן הזן את פרטי ההוצאה התואמת בגליון העבודה של החודש שבו חלה ההוצאה.

Sheet סיכום
A1: מגמות ההוצאות
B2: ינו | C2: פבר | D2: מרץ | E2: אפר | F2: מאי | G2: יונ | H2: יול | I2: אוג | J2: ספט | K2: אוק | L2: נוב | M2: דצמ | N2: עצות
A4: הוצאות | B4: ינו | C4: פבר | D4: מרץ | E4: אפר | F4: מאי | G4: יונ | H4: יול | I4: אוג | J4: ספט | K4: אוק | L4: נוב | M4: דצמ | N4: סה"כ | O4: מגמה
A5: הוצאה 1 | B5: =SUMIFS(ExpJan[סכום],ExpJan[קטגוריה],סיכום_ההוצאות[[#This Row],[הוצאות]]) -> 33.00 | C5: =SUMIFS(ExpFeb[סכום],ExpFeb[קטגוריה],סיכום_ההוצאות[[#This Row],[הוצאות]]) -> 375.00 | D5: =SUMIFS(ExpMar[סכום],ExpMar[קטגוריה],סיכום_ההוצאות[[#This Row],[הוצאות]]) -> 33.00 | E5: =SUMIFS(ExpApr[סכום],ExpApr[קטגוריה],סיכום_ההוצאות[[#This Row],[הוצאות]]) -> 45.00 | F5: =SUMIFS(ExpMay[סכום],ExpMay[קטגוריה],סיכום_ההוצאות[[#This Row],[הוצאות]]) -> 375.00 | G5: =SUMIFS(ExpJun[סכום],ExpJun[קטגוריה],סיכום_ההוצאות[[#This Row],[הוצאות]]) -> 201.00 | H5: =SUMIFS(ExpJul[סכום],ExpJul[קטגוריה],סיכום_ההוצאות[[#This Row],[הוצאות]]) -> 0.00 | I5: =SUMIFS(ExpAug[סכום],ExpAug[קטגוריה],סיכום_ההוצאות[[#This Row],[הוצאות]]) -> 0.00 | J5: =SUMIFS(ExpSep[סכום],ExpSep[קטגוריה],סיכום_ההוצאות[[#This Row],[הוצאות]]) -> 0.00 | K5: =SUMIFS(ExpOct[סכום],ExpOct[קטגוריה],סיכום_ההוצאות[[#This Row],[הוצאות]]) -> 0.00 | L5: =SUMIFS(ExpNov[סכום],ExpNov[קטגוריה],סיכום_ההוצאות[[#This Row],[הוצאות]]) -> 0.00 | M5: =SUMIFS(ExpDec[סכום],ExpDec[קטגוריה],סיכום_ההוצאות[[#This Row],[הוצאות]]) -> 201.00 | N5: =SUM(סיכום_ההוצאות[[#This Row],[ינו]:[דצמ]]) -> 1,263.00
A6: הוצאה 2 | B6: =SUMIFS(ExpJan[סכום],ExpJan[קטגוריה],סיכום_ההוצאות[[#This Row],[הוצאות]]) -> 238.00 | C6: =SUMIFS(ExpFeb[סכום],ExpFeb[קטגוריה],סיכום_ההוצאות[[#This Row],[הוצאות]]) -> 238.00 | D6: =SUMIFS(ExpMar[סכום],ExpMar[קטגוריה],סיכום_ההוצאות[[#This Row],[הוצאות]]) -> 238.00 | E6: =SUMIFS(ExpApr[סכום],ExpApr[קטגוריה],סיכום_ההוצאות[[#This Row],[הוצאות]]) -> 123.00 | F6: =SUMIFS(ExpMay[סכום],ExpMay[קטגוריה],סיכום_ההוצאות[[#This Row],[הוצאות]]) -> 111.00 | G6: =SUMIFS(ExpJun[סכום],ExpJun[קטגוריה],סיכום_ההוצאות[[#This Row],[הוצאות]]) -> 98.00 | H6: =SUMIFS(ExpJul[סכום],ExpJul[קטגוריה],סיכום_ההוצאות[[#This Row],[הוצאות]]) -> 0.00 | I6: =SUMIFS(ExpAug[סכום],ExpAug[קטגוריה],סיכום_ההוצאות[[#This Row],[הוצאות]]) -> 0.00 | J6: =SUMIFS(ExpSep[סכום],ExpSep[קטגוריה],סיכום_ההוצאות[[#This Row],[הוצאות]]) -> 0.00 | K6: =SUMIFS(ExpOct[סכום],ExpOct[קטגוריה],סיכום_ההוצאות[[#This Row],[הוצאות]]) -> 0.00 | L6: =SUMIFS(ExpNov[סכום],ExpNov[קטגוריה],סיכום_ההוצאות[[#This Row],[הוצאות]]) -> 0.00 | M6: =SUMIFS(ExpDec[סכום],ExpDec[קטגוריה],סיכום_ההוצאות[[#This Row],[הוצאות]]) -> 440.00 | N6: =SUM(סיכום_ההוצאות[[#This Row],[ינו]:[דצמ]]) -> 1,486.00
A7: הוצאה 3 | B7: =SUMIFS(ExpJan[סכום],ExpJan[קטגוריה],סיכום_ההוצאות[[#This Row],[הוצאות]]) -> 110.00 | C7: =SUMIFS(ExpFeb[סכום],ExpFeb[קטגוריה],סיכום_ההוצאות[[#This Row],[הוצאות]]) -> 110.00 | D7: =SUMIFS(ExpMar[סכום],ExpMar[קטגוריה],סיכום_ההוצאות[[#This Row],[הוצאות]]) -> 110.00 | E7: =SUMIFS(ExpApr[סכום],ExpApr[קטגוריה],סיכום_ההוצאות[[#This Row],[הוצאות]]) -> 125.00 | F7: =SUMIFS(ExpMay[סכום],ExpMay[קטגוריה],סיכום_ההוצאות[[#This Row],[הוצאות]]) -> 333.00 | G7: =SUMIFS(ExpJun[סכום],ExpJun[קטגוריה],סיכום_ההוצאות[[#This Row],[הוצאות]]) -> 122.00 | H7: =SUMIFS(ExpJul[סכום],ExpJul[קטגוריה],סיכום_ההוצאות[[#This Row],[הוצאות]]) -> 0.00 | I7: =SUMIFS(ExpAug[סכום],ExpAug[קטגוריה],סיכום_ההוצאות[[#This Row],[הוצאות]]) -> 0.00 | J7: =SUMIFS(ExpSep[סכום],ExpSep[קטגוריה],סיכום_ההוצאות[[#This Row],[הוצאות]]) -> 0.00 | K7: =SUMIFS(ExpOct[סכום],ExpOct[קטגוריה],סיכום_ההוצאות[[#This Row],[הוצאות]]) -> 0.00 | L7: =SUMIFS(ExpNov[סכום],ExpNov[קטגוריה],סיכום_ההוצאות[[#This Row],[הוצאות]]) -> 0.00 | M7: =SUMIFS(ExpDec[סכום],ExpDec[קטגוריה],סיכום_ההוצאות[[#This Row],[הוצאות]]) -> 122.00 | N7: =SUM(סיכום_ההוצאות[[#This Row],[ינו]:[דצמ]]) -> 1,032.00
A8: הוצאה 4 | B8: =SUMIFS(ExpJan[סכום],ExpJan[קטגוריה],סיכום_ההוצאות[[#This Row],[הוצאות]]) -> 426.00 | C8: =SUMIFS(ExpFeb[סכום],ExpFeb[קטגוריה],סיכום_ההוצאות[[#This Row],[הוצאות]]) -> 84.00 | D8: =SUMIFS(ExpMar[סכום],ExpMar[קטגוריה],סיכום_ההוצאות[[#This Row],[הוצאות]]) -> 84.00 | E8: =SUMIFS(ExpApr[סכום],ExpApr[קטגוריה],סיכום_ההוצאות[[#This Row],[הוצאות]]) -> 426.00 | F8: =SUMIFS(ExpMay[סכום],ExpMay[קטגוריה],סיכום_ההוצאות[[#This Row],[הוצאות]]) -> 125.00 | G8: =SUMIFS(ExpJun[סכום],ExpJun[קטגוריה],סיכום_ההוצאות[[#This Row],[הוצאות]]) -> 187.00 | H8: =SUMIFS(ExpJul[סכום],ExpJul[קטגוריה],סיכום_ההוצאות[[#This Row],[הוצאות]]) -> 0.00 | I8: =SUMIFS(ExpAug[סכום],ExpAug[קטגוריה],סיכום_ההוצאות[[#This Row],[הוצאות]]) -> 0.00 | J8: =SUMIFS(ExpSep[סכום],ExpSep[קטגוריה],סיכום_ההוצאות[[#This Row],[הוצאות]]) -> 0.00 | K8: =SUMIFS(ExpOct[סכום],ExpOct[קטגוריה],סיכום_ההוצאות[[#This Row],[הוצאות]]) -> 0.00 | L8: =SUMIFS(ExpNov[סכום],ExpNov[קטגוריה],סיכום_ההוצאות[[#This Row],[הוצאות]]) -> 0.00 | M8: =SUMIFS(ExpDec[סכום],ExpDec[קטגוריה],סיכום_ההוצאות[[#This Row],[הוצאות]]) -> 187.00 | N8: =SUM(סיכום_ההוצאות[[#This Row],[ינו]:[דצמ]]) -> 1,519.00
A9: הוצאה 5 | B9: =SUMIFS(ExpJan[סכום],ExpJan[קטגוריה],סיכום_ההוצאות[[#This Row],[הוצאות]]) -> 54.00 | C9: =SUMIFS(ExpFeb[סכום],ExpFeb[קטגוריה],סיכום_ההוצאות[[#This Row],[הוצאות]]) -> 54.00 | D9: =SUMIFS(ExpMar[סכום],ExpMar[קטגוריה],סיכום_ההוצאות[[#This Row],[הוצאות]]) -> 109.00 | E9: =SUMIFS(ExpApr[סכום],ExpApr[קטגוריה],סיכום_ההוצאות[[#This Row],[הוצאות]]) -> 98.00 | F9: =SUMIFS(ExpMay[סכום],ExpMay[קטגוריה],סיכום_ההוצאות[[#This Row],[הוצאות]]) -> 33.00 | G9: =SUMIFS(ExpJun[סכום],ExpJun[קטגוריה],סיכום_ההוצאות[[#This Row],[הוצאות]]) -> 441.00 | H9: =SUMIFS(ExpJul[סכום],ExpJul[קטגוריה],סיכום_ההוצאות[[#This Row],[הוצאות]]) -> 0.00 | I9: =SUMIFS(ExpAug[סכום],ExpAug[קטגוריה],סיכום_ההוצאות[[#This Row],[הוצאות]]) -> 0.00 | J9: =SUMIFS(ExpSep[סכום],ExpSep[קטגוריה],סיכום_ההוצאות[[#This Row],[הוצאות]]) -> 0.00 | K9: =SUMIFS(ExpOct[סכום],ExpOct[קטגוריה],סיכום_ההוצאות[[#This Row],[הוצאות]]) -> 0.00 | L9: =SUMIFS(ExpNov[סכום],ExpNov[קטגוריה],סיכום_ההוצאות[[#This Row],[הוצאות]]) -> 0.00 | M9: =SUMIFS(ExpDec[סכום],ExpDec[קטגוריה],סיכום_ההוצאות[[#This Row],[הוצאות]]) -> 99.00 | N9: =SUM(סיכום_ההוצאות[[#This Row],[ינו]:[דצמ]]) -> 888.00
A10: סה"כ | B10: =SUBTOTAL(109,סיכום_ההוצאות[ינו]) -> 861.00 | C10: =SUBTOTAL(109,סיכום_ההוצאות[פבר]) -> 861.00 | D10: =SUBTOTAL(109,סיכום_ההוצאות[מרץ]) -> 574.00 | E10: =SUBTOTAL(109,סיכום_ההוצאות[אפר]) -> 817.00 | F10: =SUBTOTAL(109,סיכום_ההוצאות[מאי]) -> 977.00 | G10: =SUBTOTAL(109,סיכום_ההוצאות[יונ]) -> 1,049.00 | H10: =SUBTOTAL(109,סיכום_ההוצאות[יול]) -> 0.00 | I10: =SUBTOTAL(109,סיכום_ההוצאות[אוג]) -> 0.00 | J10: =SUBTOTAL(109,סיכום_ההוצאות[ספט]) -> 0.00 | K10: =SUBTOTAL(109,סיכום_ההוצאות[אוק]) -> 0.00 | L10: =SUBTOTAL(109,סיכום_ההוצאות[נוב]) -> 0.00 | M10: =SUBTOTAL(109,סיכום_ההוצאות[דצמ]) -> 1,049.00 | N10: =SUBTOTAL(109,סיכום_ההוצאות[סה"כ]) -> 6,188.00

Sheet ינו
A1: הוצאות בינואר | D1: סיכום | E1: עצות
A2: תאריך | B2: מס' הזמנת רכש | C2: סכום | D2: קטגוריה | E2: תיאור
A3: =DATE(YEAR(TODAY()),1,4) -> 2016-01-04 | B3: A-12345 | C3: 33.00 | D3: הוצאה 1 | E3: ציוד
A4: =DATE(YEAR(TODAY()),1,5) -> 2016-01-05 | B4: A-12346 | C4: 238.00 | D4: הוצאה 2
C5: 342.00 | D5: הוצאה 4
C6: 110.00 | D6: הוצאה 3
C7: 84.00 | D7: הוצאה 4
C8: 54.00 | D8: הוצאה 5
A9: סה"כ | C9: =SUBTOTAL(109,ExpJan[סכום]) -> 861.00

Sheet פבר
A1: הוצאות בפברואר | D1: סיכום | E1: עצות
A2: תאריך | B2: מס' הזמנת רכש | C2: סכום | D2: קטגוריה | E2: תיאור
A3: =DATE(YEAR(TODAY()),2,3) -> 2016-02-03 | B3: A-12345 | C3: 33.00 | D3: הוצאה 1 | E3: ציוד
A4: =DATE(YEAR(TODAY()),2,4) -> 2016-02-04 | B4: A-12346 | C4: 238.00 | D4: הוצאה 2
C5: 342.00 | D5: הוצאה 1
C6: 110.00 | D6: הוצאה 3
C7: 84.00 | D7: הוצאה 4
C8: 54.00 | D8: הוצאה 5
A9: סה"כ | C9: =SUBTOTAL(109,ExpFeb[סכום]) -> 861.00

Sheet מרץ
A1: הוצאות במרץ | D1: סיכום | E1: עצות
A2: תאריך | B2: מס' הזמנת רכש | C2: סכום | D2: קטגוריה | E2: תיאור
A3: =DATE(YEAR(TODAY()),3,5) -> 2016-03-05 | B3: A-12345 | C3: 33.00 | D3: הוצאה 1 | E3: ציוד
A4: =DATE(YEAR(TODAY()),3,6) -> 2016-03-06 | B4: A-12346 | C4: 238.00 | D4: הוצאה 2
C5: 55.00 | D5: הוצאה 5
C6: 110.00 | D6: הוצאה 3
C7: 84.00 | D7: הוצאה 4
C8: 54.00 | D8: הוצאה 5
A9: סה"כ | C9: =SUBTOTAL(109,ExpMar[סכום]) -> 574.00

Sheet אפר
A1: הוצאות באפריל | D1: סיכום | E1: עצות
A2: תאריך | B2: מס' הזמנת רכש | C2: סכום | D2: קטגוריה | E2: תיאור
A3: =DATE(YEAR(TODAY()),4,4) -> 2016-04-04 | B3: A-12345 | C3: 45.00 | D3: הוצאה 1 | E3: ציוד
A4: =DATE(YEAR(TODAY()),4,8) -> 2016-04-08 | B4: A-12346 | C4: 123.00 | D4: הוצאה 2
C5: 342.00 | D5: הוצאה 4
C6: 125.00 | D6: הוצאה 3
C7: 84.00 | D7: הוצאה 4
C8: 98.00 | D8: הוצאה 5
A9: סה"כ | C9: =SUBTOTAL(109,ExpApr[סכום]) -> 817.00

Sheet מאי
A1: הוצאות במאי | D1: סיכום | E1: עצות
A2: תאריך | B2: מס' הזמנת רכש | C2: סכום | D2: קטגוריה | E2: תיאור
A3: =DATE(YEAR(TODAY()),5,3) -> 2016-05-03 | B3: A-12345 | C3: 33.00 | D3: הוצאה 1 | E3: ציוד
A4: =DATE(YEAR(TODAY()),5,8) -> 2016-05-08 | B4: A-12346 | C4: 111.00 | D4: הוצאה 2
C5: 342.00 | D5: הוצאה 1
C6: 333.00 | D6: הוצאה 3
C7: 125.00 | D7: הוצאה 4
C8: 33.00 | D8: הוצאה 5
A9: סה"כ | C9: =SUBTOTAL(109,ExpMay[סכום]) -> 977.00

Sheet יונ
A1: הוצאות ביוני | D1: סיכום | E1: עצות
A2: תאריך | B2: מס' הזמנת רכש | C2: סכום | D2: קטגוריה | E2: תיאור
A3: =DATE(YEAR(TODAY()),6,7) -> 2016-06-07 | B3: A-12345 | C3: 201.00 | D3: הוצאה 1 | E3: ציוד
A4: =DATE(YEAR(TODAY()),6,8) -> 2016-06-08 | B4: A-12346 | C4: 98.00 | D4: הוצאה 2
C5: 342.00 | D5: הוצאה 5
C6: 122.00 | D6: הוצאה 3
C7: 187.00 | D7: הוצאה 4
C8: 99.00 | D8: הוצאה 5
A9: סה"כ | C9: =SUBTOTAL(109,ExpJun[סכום]) -> 1,049.00

Sheet יול
A1: הוצאות ביולי | D1: סיכום | E1: עצות
A2: תאריך | B2: מס' הזמנת רכש | C2: סכום | D2: קטגוריה | E2: תיאור
A3: =DATE(YEAR(TODAY()),7,9) -> 2016-07-09 | B3: A-12345 | D3: הוצאה 1 | E3: ציוד
A4: =DATE(YEAR(TODAY()),7,14) -> 2016-07-14 | B4: A-12346 | D4: הוצאה 2
D5: הוצאה 2
D6: הוצאה 3
D7: הוצאה 4
D8: הוצאה 5
A9: סה"כ | C9: =SUBTOTAL(109,ExpJul[סכום]) -> 0.00

Sheet אוג
A1: הוצאות באוגוסט | D1: סיכום | E1: עצות
A2: תאריך | B2: מס' הזמנת רכש | C2: סכום | D2: קטגוריה | E2: תיאור
A3: =DATE(YEAR(TODAY()),8,8) -> 2016-08-08 | B3: A-12345 | D3: הוצאה 1 | E3: ציוד
A4: =DATE(YEAR(TODAY()),8,9) -> 2016-08-09 | B4: A-12346 | D4: הוצאה 2
D5: הוצאה 2
D6: הוצאה 3
D7: הוצאה 4
D8: הוצאה 5
A9: סה"כ | C9: =SUBTOTAL(109,ExpAug[סכום]) -> 0.00

Sheet ספט
A1: הוצאות בספטמבר | D1: סיכום | E1: עצות
A2: תאריך | B2: מס' הזמנת רכש | C2: סכום | D2: קטגוריה | E2: תיאור
A3: =DATE(YEAR(TODAY()),9,9) -> 2016-09-09 | B3: A-12345 | D3: הוצאה 1 | E3: ציוד
A4: =DATE(YEAR(TODAY()),9,15) -> 2016-09-15 | B4: A-12346 | D4: הוצאה 2
D5: הוצאה 2
D6: הוצאה 3
D7: הוצאה 4
D8: הוצאה 5
A9: סה"כ | C9: =SUBTOTAL(109,ExpSep[סכום]) -> 0.00

Sheet אוק
A1: הוצאות באוקטובר | D1: סיכום | E1: עצות
A2: תאריך | B2: מס' הזמנת רכש | C2: סכום | D2: קטגוריה | E2: תיאור
A3: =DATE(YEAR(TODAY()),10,10) -> 2016-10-10 | B3: A-12345 | D3: הוצאה 1 | E3: ציוד
A4: =DATE(YEAR(TODAY()),10,21) -> 2016-10-21 | B4: A-12346 | D4: הוצאה 2
D5: הוצאה 2
D6: הוצאה 3
D7: הוצאה 4
D8: הוצאה 5
A9: סה"כ | C9: =SUBTOTAL(109,ExpOct[סכום]) -> 0.00

Sheet נוב
A1: הוצאות בנובמבר | D1: סיכום | E1: עצות
A2: תאריך | B2: מס' הזמנת רכש | C2: סכום | D2: קטגוריה | E2: תיאור
A3: =DATE(YEAR(TODAY()),11,14) -> 2016-11-14 | B3: A-12345 | D3: הוצאה 1 | E3: ציוד
A4: =DATE(YEAR(TODAY()),11,21) -> 2016-11-21 | B4: A-12346 | D4: הוצאה 2
D5: הוצאה 2
D6: הוצאה 3
D7: הוצאה 4
D8: הוצאה 5
A9: סה"כ | C9: =SUBTOTAL(109,ExpNov[סכום]) -> 0.00

Sheet דצמ
A1: הוצאות בדצמבר | D1: סיכום | E1: עצות
A2: תאריך | B2: מס' הזמנת רכש | C2: סכום | D2: קטגוריה | E2: תיאור
A3: =DATE(YEAR(TODAY()),12,2) -> 2016-12-02 | B3: A-12345 | C3: 201.00 | D3: הוצאה 1 | E3: ציוד
A4: =DATE(YEAR(TODAY()),12,24) -> 2016-12-24 | B4: A-12346 | C4: 98.00 | D4: הוצאה 2
C5: 342.00 | D5: הוצאה 2
C6: 122.00 | D6: הוצאה 3
C7: 187.00 | D7: הוצאה 4
C8: 99.00 | D8: הוצאה 5
A9: סה"כ | C9: =SUBTOTAL(109,ExpDec[סכום]) -> 1,049.00
